fUST/lending_fUST_20250120
["ID","MTS","AMOUNT","RATE_DAILY","PERIOD"]
[349645479,1737351048473,-599.59,0.00022465,3]
[349645480,1737351048483,-359.19806697,0.00022465,3]
[349645481,1737351048493,-2234.05,0.00022465,3]
[349645482,1737351048503,-500.0,0.00022465,3]
[349645483,1737351048513,-500.0,0.00022465,3]
[349645484,1737351048522,-500.0,0.00022465,3]
[349645485,1737351048532,-5811.67,0.00022465,3]
[349645486,1737351048542,-500.0,0.00022465,3]
[349645487,1737351048552,-500.0,0.00022465,3]
[349645488,1737351048562,-500.0,0.00022465,3]
[349645489,1737351048572,-500.0,0.00022465,3]
[349645490,1737351048582,-500.0,0.00022465,3]
[349645491,1737351048592,-713.71,0.00022465,3]
[349645492,1737351048602,-500.0,0.00022465,3]
[349645493,1737351048617,-500.0,0.00022465,3]
[349645494,1737351048627,-500.0,0.00022465,3]
[349645495,1737351048637,-500.0,0.00022465,3]
[349645496,1737351048646,-500.0,0.00022465,3]
[349645497,1737351048656,-500.0,0.00022465,3]
[349645498,1737351048666,-674.45,0.00022465,3]
[349645499,1737351048676,-2079.22,0.00022465,3]
[349645500,1737351048686,-814.66,0.00022465,3]
[349645501,1737351048696,-500.0,0.00022465,3]
[349645502,1737351048706,-4996.78,0.00022465,3]
[349645503,1737351048716,-500.0,0.00022465,3]
[349645504,1737351048726,-500.0,0.00022465,3]
[349645505,1737351048736,-500.0,0.00022465,3]
[349645506,1737351048746,-500.0,0.00022465,3]
[349645507,1737351048757,-500.0,0.00022465,3]
[349645508,1737351048768,-500.0,0.00022465,3]
[349645509,1737351048778,-807.97,0.00022465,3]
[349645510,1737351048788,-1154.41,0.00022465,3]
[349645511,1737351048799,-500.0,0.00022465,3]
[349645512,1737351048810,-7776.44,0.00022465,3]
[349645513,1737351048820,-1847.37,0.00022465,3]
[349645514,1737351048830,-500.0,0.00022465,3]
[349645515,1737351048840,-500.0,0.00022465,3]
[349645516,1737351048849,-500.0,0.00022465,3]
[349645517,1737351048860,-500.0,0.00022465,3]
[349645518,1737351048869,-500.0,0.00022465,3]
[349645519,1737351048879,-1000.0,0.00022484,2]
[349645520,1737351048888,-1002.18022191,0.00022484,2]
[349645521,1737351048898,-403.72305108,0.00022484,2]
[349645522,1737351048908,-1000.0,0.00022484,2]
[349645523,1737351048917,-2992.06048737,0.000225,2]
[349645524,1737351048927,-4000.0,0.000225,5]
[349645525,1737351048937,-1433.41,0.000225,2]
[349645526,1737351048948,-151.0,0.000225,6]
[349645527,1737351048959,-11804.41322973,0.000225,2]
[349645528,1737351049414,-151.0,0.00021,2]
[349645529,1737351049424,-151.0,0.00021,2]
[349645530,1737351049434,-151.0,0.00021807,2]
[349645531,1737351049444,-202.94033065,0.000219,3]
[349645532,1737351049454,-202.94033065,0.000221,3]
[349645533,1737351049464,-500.0,0.00022191,2]
[349645534,1737351049473,-202.94033065,0.000223,3]
[349645535,1737351049483,-500.0,0.00022465,2]
[349645536,1737351049493,-500.0,0.00022465,3]
[349645537,1737351049503,-2059.10100805,0.000225,2]
[349645540,1737351191228,6545.84385859,0.00023689,120]
[349645541,1737351315610,4222.23011697,0.00023689,120]
[349645542,1737351814687,3575.27542891,0.00023689,120]
[349645545,1737351944410,164.048358,0.00013973,2]
[349645592,1737352232593,-203.135549,0.00020853,2]
[349645593,1737352232605,-300.0,0.00020925,2]
[349645594,1737352232616,-22693.30378721,0.00020926,2]
[349645595,1737352232637,-2179.9547488,0.00020926,2]
[349645596,1737352232672,-26.74146399,0.00020926,2]
[349645597,1737352232688,-379.52963501,0.0002137,2]
[349645637,1737352244219,-283.20336499,0.0002137,2]
[349645639,1737352244229,-194.12608846,0.00021589,2]
[349645641,1737352244240,-543.0,0.000217,2]
[349645643,1737352244249,-4.46454655,0.00021817,2]
[349645653,1737352244334,-658.0000098,0.00021817,2]
[349645682,1737352244609,-333.3335233,0.00021817,2]
[349645684,1737352244618,-174.12987318,0.00021817,2]
[349645686,1737352244627,-173.316,0.00021916,2]
[349645688,1737352244636,-158.92,0.00021917,2]
[349645690,1737352244646,-500.0,0.00021917,3]
[349645692,1737352244655,-505.75567312,0.00021917,3]
[349645694,1737352244664,-183.27992743,0.00021917,3]
[349645763,1737352246586,-316.72007257,0.00021917,3]
[349645764,1737352246596,-502.47992743,0.00021917,3]
[349645766,1737352578168,2860.22034313,0.00023685,120]
[349645767,1737352787691,164.048358,0.00013973,2]
[349645803,1737353432816,-318.190578,0.000204,2]
[349645804,1737353432843,-239.5033063,0.0002047,2]
[349645932,1737353443727,-221.1354658,0.0002047,2]
[349645933,1737353443736,-200.07421763,0.00020825,3]
[349645934,1737353443746,-69.52615771,0.00020825,2]
[349645935,1737353443758,-139.88392264,0.00020825,2]
[349645936,1737353443768,-170.647,0.00020825,2]
[349645937,1737353443778,-300.0,0.00020896,2]
[349645938,1737353443787,-414.46907736,0.00020897,2]
[349645956,1737353481132,500.0,0.0002,6]
[349645957,1737353489415,500.0,0.0002,5]
[349645958,1737353497636,500.0,0.0002,5]
[349645959,1737353528747,500.0,0.0002,7]
[349645960,1737353542820,303.21526434,0.000199,2]
[349645962,1737353671914,163.971191,0.00013973,2]
[349645970,1737354084504,159.095289,0.00019824,2]
[349645972,1737354197259,17526.00822108,0.00023685,120]
[349645974,1737354261961,14020.80657687,0.00023685,120]
[349645980,1737354337228,11216.64526149,0.00023686,120]
[349646006,1737354466501,8973.31620919,0.00023686,120]
[349646017,1737354526856,163.899537,0.00013973,2]
[349646068,1737354633465,-300.0,0.00020181,2]
[349646069,1737354633475,-1081.28484484,0.00020182,2]
[349646070,1737354633488,-456.65,0.00020182,2]
[349646628,1737354643956,-1857.5760012,0.00020182,2]
[349646689,1737354647074,-21050.02007656,0.00020182,2]
[349646690,1737354647084,-170.648,0.00020765,2]
[349646691,1737354647094,-1179.864138,0.0002085,2]
[349646692,1737354647103,-1000.0,0.00021,21]
[349646693,1737354647112,-1000.0,0.00021,2]
[349646694,1737354647122,-634.815,0.0002137,2]
[349646695,1737354647131,-153.0000001,0.000214,2]
[349646696,1737354647140,-890.43562495,0.00021646,2]
[349646697,1737354647149,-1934.0,0.00021658,2]
[349646698,1737354647159,-152.43,0.00021746,2]
[349646699,1737354647168,-158.93,0.00021832,2]
[349646700,1737354647177,-202.94033065,0.000219,3]
[349646701,1737354647186,-2974.12289607,0.0002191,2]
[349646702,1737354647195,-5416.77304501,0.00021917,5]
[349646703,1737354647205,-2337.04812511,0.00021917,5]
[349646704,1737354647215,-502.87034882,0.00021917,2]
[349646705,1737354647224,-500.0,0.00021917,3]
[349646706,1737354647233,-500.0,0.00021917,3]
[349646707,1737354647243,-416.08314127,0.00021917,3]
[349646708,1737354647252,-257.94,0.00021917,3]
[349646709,1737354647261,-500.0,0.00021917,3]
[349646710,1737354647273,-506.70597767,0.00021917,3]
[349646711,1737354647283,-397.67503398,0.00021917,3]
[349646712,1737354647292,-500.0,0.00021917,3]
[349646713,1737354647304,-500.0,0.00021917,3]
[349646714,1737354647313,-505.87235401,0.00021917,3]
[349646715,1737354647323,-500.0,0.00021917,3]
[349646716,1737354647333,-159.4143493,0.00021917,3]
[349646717,1737354647342,-500.0,0.00021917,3]
[349646718,1737354647352,-500.0,0.00021917,3]
[349646719,1737354647496,-500.0,0.00021917,3]
[349646720,1737354647506,-500.0,0.00021917,3]
[349646721,1737354647516,-500.0,0.00021917,3]
[349646722,1737354647529,-500.0,0.00021917,3]
[349646723,1737354647538,-500.0,0.00021917,3]
[349646724,1737354647547,-503.81413154,0.00021917,3]
[349646725,1737354647556,-500.0,0.00021917,3]
[349646726,1737354647565,-914.56,0.00021917,2]
[349646727,1737354647574,-92.34814381,0.00021917,3]
[349646730,1737354655154,7178.65296736,0.00023686,120]
[349646736,1737354718877,5742.92237388,0.00023686,120]
[349646737,1737354791848,22971.68949554,0.00023686,120]
[349646748,1737355415642,14383.94501595,0.00023686,120]
[349646768,1737355522011,555.0,0.00024,120]
[349646769,1737355525406,163.899537,0.00013973,2]
[349646770,1737355531376,555.0,0.00024,120]
[349646777,1737355633160,10000.0,0.0002,2]
[349646778,1737355679340,10000.0,0.0002,10]
[349646811,1737355832313,-504.1996892,0.00020786,2]
[349646812,1737355832323,-608.694,0.0002082,2]
[349646814,1737355832332,-999.8367976,0.00020893,2]
[349646816,1737355832347,-159.095289,0.00020893,2]
[349646818,1737355832356,-300.0,0.00021525,2]
[349646820,1737355832365,-153.0,0.00021526,2]
[349646822,1737355832374,-153.0,0.00021526,2]
[349646824,1737355832385,-153.0,0.00021526,2]
[349646826,1737355832394,-153.0,0.00021526,2]
[349646828,1737355832405,-32.69564068,0.00021526,2]
[349646830,1737355832417,-120.30435932,0.00021526,2]
[349646832,1737355832427,-153.0,0.00021526,2]
[349646834,1737355832438,-96.90977488,0.00021526,2]
[349646887,1737355832945,-56.09022512,0.00021526,2]
[349646889,1737355832955,-153.0,0.00021526,2]
[349646891,1737355832965,-153.0,0.00021526,2]
[349646893,1737355832975,-153.0,0.00021526,2]
[349646895,1737355832984,-153.0,0.00021526,2]
[349646897,1737355832994,-153.0,0.00021526,2]
[349646899,1737355833004,-153.0,0.00021526,2]
[349646901,1737355833013,-153.0,0.00021526,2]
[349646903,1737355833023,-153.0,0.00021526,2]
[349646905,1737355833032,-153.0,0.00021526,2]
[349646907,1737355833042,-153.0,0.00021526,2]
[349646910,1737355833060,-153.0,0.00021526,2]
[349646912,1737355833070,-153.0,0.00021526,2]
[349646913,1737355833080,-153.0,0.00021526,2]
[349646916,1737355833090,-153.0,0.00021526,2]
[349646917,1737355833100,-153.0,0.00021526,2]
[349646919,1737355833110,-153.0,0.00021526,2]
[349646921,1737355833121,-153.0,0.00021526,2]
[349646923,1737355833131,-239.84,0.00021526,2]
[349646925,1737355833143,-153.0,0.00021533,2]
[349646927,1737355833152,-153.0,0.00021667,2]
[349646929,1737355833163,-153.0,0.00021667,2]
[349646931,1737355833173,-153.0,0.00021667,2]
[349646934,1737355833184,-153.0,0.00021667,2]
[349646937,1737355833194,-1775.1559006,0.00021697,2]
[349646940,1737355833204,-243.16,0.00021725,2]
[349646943,1737355833214,-158.77,0.00021736,2]
[349646946,1737355833224,-206.21772595,0.000219,3]
[349646949,1737355833234,-151.0,0.00021916,2]
[349646952,1737355833243,-170.648,0.00021916,2]
[349646955,1737355833253,-242.3755499,0.00021917,3]
[349646958,1737355833266,-262.67748919,0.00021917,3]
[349646961,1737355833276,-500.0,0.00021917,3]
[349646964,1737355833286,-500.0,0.00021917,2]
[349646967,1737355833299,-151.0,0.00021917,2]
[349646970,1737355833308,-151.0,0.00021917,2]
[349646973,1737355833318,-151.0,0.00021917,2]
[349646976,1737355833328,-151.0,0.00021917,2]
[349646979,1737355833338,-151.0,0.00021917,2]
[349646982,1737355833348,-151.0,0.00021917,2]
[349646985,1737355833359,-151.0,0.00021917,2]
[349646988,1737355833369,-180.2106,0.00021917,2]
[349646991,1737355833378,-151.0,0.00021917,2]
[349646994,1737355833389,-500.0,0.00021917,3]
[349646997,1737355833399,-181.945715,0.00021917,2]
[349647000,1737355833409,-181.945715,0.00021917,2]
[349647003,1737355833418,-181.945715,0.00021917,2]
[349647006,1737355833430,-181.945715,0.00021917,2]
[349647009,1737355833440,-181.945715,0.00021917,2]
[349647012,1737355833450,-181.94572183,0.00021917,2]
[349647015,1737355833459,-500.0,0.00021917,3]
[349647018,1737355833469,-500.0,0.00021917,3]
[349647021,1737355833479,-151.0,0.00021917,2]
[349647025,1737355833490,-151.0,0.00021917,2]
[349647028,1737355833500,-151.0,0.00021917,2]
[349647030,1737355833510,-151.0,0.00021917,2]
[349647033,1737355833519,-151.0,0.00021917,2]
[349647036,1737355833530,-151.0,0.00021917,2]
[349647040,1737355833540,-500.0,0.00021917,3]
[349647043,1737355833554,-501.24584189,0.00021917,2]
[349647045,1737355833564,-500.0,0.00021917,3]
[349647048,1737355833574,-500.0,0.00021917,3]
[349647051,1737355833584,-500.0,0.00021917,3]
[349647053,1737355833594,-500.0,0.00021917,3]
[349647056,1737355833604,-549.71208941,0.00021917,3]
[349647058,1737355833615,-500.0,0.00021917,3]
[349647061,1737355833625,-151.0,0.00021917,2]
[349647064,1737355833635,-151.0,0.00021917,2]
[349647067,1737355833644,-151.0,0.00021917,2]
[349647069,1737355833654,-151.0,0.00021917,2]
[349647071,1737355833665,-189.378942,0.00021917,2]
[349647073,1737355833675,-151.0,0.00021917,2]
[349647075,1737355833686,-151.0,0.00021917,2]
[349647077,1737355833697,-151.0,0.00021917,2]
[349647079,1737355833707,-151.0,0.00021917,2]
[349647081,1737355833718,-151.0,0.00021917,2]
[349647083,1737355833729,-151.0,0.00021917,2]
[349647085,1737355833739,-151.0,0.00021917,2]
[349647087,1737355833749,-272.281675,0.00021917,2]
[349647089,1737355833759,-151.0,0.00021917,2]
[349647091,1737355833769,-151.0,0.00021917,2]
[349647093,1737355833779,-151.0,0.00021917,2]
[349647095,1737355833789,-151.0,0.00021917,2]
[349647096,1737355833801,-151.0,0.00021917,2]
[349647097,1737355833811,-151.0,0.00021917,2]
[349647098,1737355833821,-897.29,0.00021917,2]
[349647099,1737355833831,-500.0,0.00021917,3]
[349647100,1737355833841,-631.28012827,0.00021917,3]
[349647101,1737355833850,-151.0,0.00021917,2]
[349647102,1737355833860,-882.34,0.00021917,3]
[349647103,1737355833870,-452.49,0.00021917,3]
[349647104,1737355833879,-500.0,0.00021917,3]
[349647105,1737355833889,-151.0,0.00021917,2]
[349647106,1737355833899,-151.0,0.00021917,2]
[349647107,1737355833908,-151.0,0.00021917,2]
[349647108,1737355833918,-151.0,0.00021917,2]
[349647109,1737355833928,-151.0,0.00021917,2]
[349647110,1737355833937,-151.0,0.00021917,2]
[349647111,1737355833947,-151.0,0.00021917,2]
[349647112,1737355833956,-151.0,0.00021917,2]
[349647113,1737355833966,-151.0,0.00021917,2]
[349647114,1737355833976,-151.0,0.00021917,2]
[349647115,1737355833987,-151.0,0.00021917,2]
[349647116,1737355833997,-151.0,0.00021917,2]
[349647117,1737355834007,-151.0,0.00021917,2]
[349647118,1737355834017,-151.0,0.00021917,2]
[349647119,1737355834026,-244.259556,0.00021917,2]
[349647120,1737355834036,-500.0,0.00021917,3]
[349647122,1737355834049,-358.05466436,0.00021917,3]
[349647124,1737355834058,-500.0,0.00021917,3]
[349647126,1737355834068,-500.0,0.00021917,3]
[349647128,1737355834078,-500.0,0.00021917,3]
[349647130,1737355834088,-519.79,0.00021917,3]
[349647132,1737355834098,-706.95,0.00021917,3]
[349647134,1737355834108,-500.0,0.00021917,3]
[349647135,1737355834118,-2774.76003686,0.00021917,3]
[349647138,1737355834132,-145.54996314,0.00021917,3]
[349647140,1737355834142,-500.0,0.00021917,3]
[349647142,1737355834151,-1549.73,0.00021917,3]
[349647144,1737355834161,-1768.62,0.00021917,3]
[349647146,1737355834171,-151.0,0.00021917,2]
[349647148,1737355834181,-151.0,0.00021917,2]
[349647150,1737355834190,-251.88417,0.00021917,2]
[349647152,1737355834200,-500.0,0.00021917,3]
[349647154,1737355834209,-4760.36,0.00021917,3]
[349647156,1737355834219,-500.0,0.00021917,2]
[349647158,1737355834229,-767.19,0.00021917,3]
[349647160,1737355834239,-500.0,0.00021917,3]
[349647162,1737355834249,-500.0,0.00021917,3]
[349647164,1737355834259,-151.0,0.00021917,2]
[349647165,1737355834268,-500.0,0.00021917,3]
[349647168,1737355834279,-151.0,0.00021917,2]
[349647170,1737355834288,-151.0,0.00021917,2]
[349647171,1737355834301,-151.0,0.00021917,2]
[349647174,1737355834311,-151.0,0.00021917,2]
[349647175,1737355834321,-151.0,0.00021917,2]
[349647177,1737355834331,-500.0,0.00021917,3]
[349647179,1737355834344,-500.0,0.00021917,3]
[349647181,1737355834353,-500.0,0.00021917,3]
[349647183,1737355834363,-500.0,0.00021917,3]
[349647185,1737355834373,-500.0,0.00021917,3]
[349647187,1737355834384,-500.0,0.00021917,3]
[349647189,1737355834394,-500.0,0.00021917,3]
[349647191,1737355834404,-177.002188,0.00021917,2]
[349647193,1737355834413,-177.002188,0.00021917,2]
[349647195,1737355834424,-177.002188,0.00021917,2]
[349647197,1737355834434,-177.002188,0.00021917,2]
[349647199,1737355834444,-177.002188,0.00021917,2]
[349647201,1737355834454,-177.002188,0.00021917,2]
[349647203,1737355834464,-177.002188,0.00021917,2]
[349647205,1737355834474,-177.002188,0.00021917,2]
[349647207,1737355834485,-177.002188,0.00021917,2]
[349647209,1737355834495,-177.002188,0.00021917,2]
[349647211,1737355834505,-177.002188,0.00021917,2]
[349647213,1737355834514,-177.002188,0.00021917,2]
[349647215,1737355834524,-177.002188,0.00021917,2]
[349647217,1737355834534,-177.002188,0.00021917,2]
[349647219,1737355834543,-177.002188,0.00021917,2]
[349647221,1737355834555,-177.002188,0.00021917,2]
[349647223,1737355834565,-177.002188,0.00021917,2]
[349647225,1737355834575,-177.002188,0.00021917,2]
[349647227,1737355834584,-177.002188,0.00021917,2]
[349647229,1737355834593,-177.002188,0.00021917,2]
[349647231,1737355834603,-533.94,0.00021917,3]
[349647233,1737355834613,-500.0,0.00021917,3]
[349647235,1737355834623,-1709.44,0.00021917,3]
[349647237,1737355834632,-500.0,0.00021917,3]
[349647239,1737355834641,-565.02,0.00021917,3]
[349647241,1737355834652,-419.132793,0.00021917,2]
[349647243,1737355834662,-419.132793,0.00021917,2]
[349647245,1737355834671,-419.132793,0.00021917,2]
[349647247,1737355834681,-419.132793,0.00021917,2]
[349647249,1737355834690,-419.132793,0.00021917,2]
[349647251,1737355834700,-419.132793,0.00021917,2]
[349647253,1737355834710,-419.132793,0.00021917,2]
[349647255,1737355834719,-419.132793,0.00021917,2]
[349647257,1737355834731,-419.132793,0.00021917,2]
[349647259,1737355834741,-419.132793,0.00021917,2]
[349647261,1737355834751,-419.132793,0.00021917,2]
[349647263,1737355834761,-419.132793,0.00021917,2]
[349647265,1737355834771,-419.132793,0.00021917,2]
[349647267,1737355834780,-419.132793,0.00021917,2]
[349647269,1737355834790,-419.132793,0.00021917,2]
[349647271,1737355834802,-419.132793,0.00021917,2]
[349647272,1737355834811,-419.132793,0.00021917,2]
[349647273,1737355834820,-500.0,0.00021917,3]
[349647274,1737355834829,-419.132793,0.00021917,2]
[349647275,1737355834838,-419.132793,0.00021917,2]
[349647276,1737355834847,-419.1327935,0.00021917,2]
[349647277,1737355834856,-500.0,0.00021917,3]
[349647278,1737355834865,-500.0,0.00021917,3]
[349647279,1737355834874,-500.0,0.00021917,3]
[349647280,1737355834884,-913.91,0.00021917,3]
[349647281,1737355834894,-644.94,0.00021917,3]
[349647282,1737355834903,-6263.24,0.00021917,3]
[349647283,1737355834912,-315.20678124,0.00021917,2]
[349647284,1737355834921,-151.0,0.00021917,2]
[349647285,1737355834930,-500.0,0.00021917,3]
[349647286,1737355834940,-3955.79,0.00021917,3]
[349647287,1737355834950,-500.0,0.00021917,3]
[349647289,1737355834959,-500.0,0.00021917,3]
[349647291,1737355834969,-500.0,0.00021917,3]
[349647293,1737355834978,-500.0,0.00021917,3]
[349647294,1737355834989,-500.0,0.00021917,2]
[349647295,1737355834999,-500.0,0.00021917,3]
[349647296,1737355835010,-500.0,0.00021917,3]
[349647297,1737355835020,-500.0,0.00021917,3]
[349647298,1737355835030,-500.0,0.00021917,3]
[349647299,1737355835039,-500.0,0.00021917,3]
[349647300,1737355835052,-639.64,0.00021917,3]
[349647301,1737355835061,-2862.17,0.00021917,3]
[349647302,1737355835071,-500.0,0.00021917,3]
[349647303,1737355835080,-500.0,0.00021917,3]
[349647304,1737355835089,-500.0,0.00021917,3]
[349647305,1737355835099,-501.65935243,0.00021917,3]
[349647306,1737355835109,-500.0,0.00021917,3]
[349647307,1737355835119,-502.82979385,0.00021917,3]
[349647308,1737355835128,-584.0861439,0.00021917,3]
[349647309,1737355835138,-151.0,0.00021917,2]
[349647310,1737355835147,-151.0,0.00021917,2]
[349647311,1737355835156,-151.0,0.00021917,2]
[349647312,1737355835166,-151.0,0.00021917,2]
[349647313,1737355835176,-151.0,0.00021917,2]
[349647314,1737355835186,-151.0,0.00021917,2]
[349647315,1737355835195,-500.67472385,0.00021917,3]
[349647316,1737355835204,-151.0,0.00021917,2]
[349647317,1737355835214,-151.0,0.00021917,2]
[349647318,1737355835223,-228.497612,0.00021917,2]
[349647319,1737355835232,-581.20363663,0.00021917,3]
[349647320,1737355835241,-502.72465028,0.00021917,3]
[349647321,1737355835251,-505.71204241,0.00021917,3]
[349647322,1737355835260,-507.30873675,0.00021917,3]
[349647323,1737355835269,-500.0,0.00021917,3]
[349647324,1737355835279,-536.0,0.00021921,2]
[349647325,1737355835288,-2064.0,0.00021921,2]
[349647326,1737355835300,-2307.0,0.00021921,2]
[349647327,1737355835311,-395.0,0.00021921,2]
[349647328,1737355835320,-524.86759246,0.00021999,2]
[349647329,1737355835330,-11230.36218585,0.00022,5]
[349647330,1737355835343,-1168.52406256,0.00022,5]
[349647331,1737355835353,-3000.0,0.00022,2]
[349647332,1737355835363,-1000.0,0.00022,22]
[349647333,1737355835373,-1000.0,0.00022,3]
[349647334,1737355835383,-854.0,0.00022,2]
[349647335,1737355835394,-19452.7272385,0.00022,2]
[349647336,1737355835404,-3000.0,0.0002201,2]
[349647337,1737355835415,-3000.0,0.0002202,2]
[349647338,1737355835425,-3000.0,0.0002203,2]
[349647339,1737355835436,-3000.0,0.0002204,2]
[349647340,1737355835446,-3000.0,0.0002205,2]
[349647341,1737355835456,-500.0,0.00022053,2]
[349647342,1737355835466,-263.15345063,0.00022053,2]
[349647343,1737355835476,-300.14790039,0.00022053,2]
[349647344,1737355835579,-500.0,0.00022053,2]
[349647345,1737355835589,-308.13161401,0.00022053,2]
[349647346,1737355835598,-185.56447416,0.00022053,2]
[349647347,1737355835609,-500.0,0.00022053,2]
[349647348,1737355835619,-500.0,0.00022053,2]
[349647349,1737355835628,-500.0,0.00022053,2]
[349647350,1737355835639,-500.0,0.00022053,2]
[349647351,1737355835649,-455.91805594,0.00022053,2]
[349647352,1737355835658,-500.0,0.00022053,2]
[349647353,1737355835668,-500.0,0.00022053,2]
[349647354,1737355835679,-500.0,0.00022053,2]
[349647355,1737355835689,-624.4489822,0.00022053,2]
[349647356,1737355835698,-500.0,0.00022053,2]
[349647357,1737355835707,-500.0,0.00022053,2]
[349647358,1737355835717,-472.11631012,0.00022053,2]
[349647359,1737355835727,-500.0,0.00022053,2]
[349647360,1737355835737,-500.0,0.00022053,2]
[349647361,1737355835747,-500.0,0.00022053,2]
[349647362,1737355835756,-500.0,0.00022054,2]
[349647363,1737355835765,-288.48,0.00022054,3]
[349647364,1737355835775,-500.0,0.00022054,3]
[349647365,1737355835784,-500.0,0.00022054,3]
[349647366,1737355835794,-897.29,0.00022054,2]
[349647367,1737355835806,-500.0,0.00022054,3]
[349647368,1737355835816,-882.34,0.00022054,3]
[349647369,1737355835826,-500.0,0.00022054,3]
[349647370,1737355835836,-168.73224119,0.00022054,3]
[349647371,1737355835845,-500.0,0.00022054,3]
[349647372,1737355835854,-519.79,0.00022054,3]
[349647373,1737355835865,-706.95,0.00022054,3]
[349647374,1737355835874,-2920.31,0.00022054,3]
[349647375,1737355835883,-500.0,0.00022054,3]
[349647376,1737355835893,-1549.73,0.00022054,3]
[349647377,1737355835902,-1768.62,0.00022054,3]
[349647378,1737355835912,-4760.36,0.00022054,3]
[349647379,1737355835921,-767.19,0.00022054,3]
[349647380,1737355835931,-500.0,0.00022054,3]
[349647381,1737355835940,-224.25303828,0.00022054,3]
[349647382,1737355835949,-500.0,0.00022054,3]
[349647383,1737355835959,-500.0,0.00022054,3]
[349647384,1737355835969,-500.0,0.00022054,3]
[349647385,1737355835979,-500.0,0.00022054,3]
[349647386,1737355835988,-620.75841541,0.00022054,3]
[349647387,1737355835998,-500.0,0.00022054,3]
[349647388,1737355836008,-533.94,0.00022054,3]
[349647389,1737355836018,-168.0248104,0.00022054,3]
[349647390,1737355836028,-1709.44,0.00022054,3]
[349647391,1737355836038,-565.02,0.00022054,3]
[349647392,1737355836050,-212.19,0.00022054,3]
[349647393,1737355836059,-500.0,0.00022054,3]
[349647394,1737355836067,-500.0,0.00022054,3]
[349647395,1737355836076,-913.91,0.00022054,3]
[349647396,1737355836086,-644.94,0.00022054,3]
[349647397,1737355836096,-6263.24,0.00022054,3]
[349647398,1737355836105,-500.0,0.00022054,3]
[349647399,1737355836115,-3955.79,0.00022054,3]
[349647400,1737355836124,-500.0,0.00022054,3]
[349647401,1737355836134,-500.0,0.00022054,3]
[349647402,1737355836144,-500.0,0.00022054,2]
[349647403,1737355836154,-500.0,0.00022054,3]
[349647404,1737355836163,-500.0,0.00022054,3]
[349647405,1737355836173,-500.0,0.00022054,3]
[349647406,1737355836183,-500.0,0.00022054,3]
[349647407,1737355836192,-639.64,0.00022054,3]
[349647408,1737355836202,-2862.17,0.00022054,3]
[349647409,1737355836211,-500.0,0.00022054,3]
[349647410,1737355836220,-3000.0,0.0002206,2]
[349647411,1737355836230,-3000.0,0.0002207,2]
[349647412,1737355836239,-500.0,0.00022073,2]
[349647413,1737355836249,-500.0,0.00022073,2]
[349647414,1737355836258,-630.47639763,0.00022073,2]
[349647415,1737355836268,-268.74910102,0.00022073,2]
[349647416,1737355836278,-500.0,0.00022073,2]
[349647417,1737355836288,-152.22082034,0.00022073,2]
[349647418,1737355836298,-3000.0,0.0002208,2]
[349647419,1737355836308,-3000.0,0.0002209,2]